fUST/lending_fUST_20251212
["ID","MTS","AMOUNT","RATE_DAILY","PERIOD"]
[398352284,1765550603208,-5514.1,0.00041095,120]
[398352285,1765550603246,-500.0,0.00041095,120]
[398352286,1765550603286,-959.85,0.00041095,30]
[398352287,1765550603326,-500.0,0.00041095,120]
[398352288,1765550603368,-215.48685709,0.00041095,120]
[398352289,1765550603415,-4450.87,0.00041095,120]
[398352290,1765550603462,-1066.27,0.00041095,120]
[398352291,1765550603511,-500.0,0.00041095,120]
[398352292,1765550603561,-578.39,0.00041095,120]
[398352293,1765550603607,-4678.34,0.00041095,120]
[398352294,1765550603654,-6211.14,0.00041095,120]
[398352295,1765550603701,-631.3,0.00041095,120]
[398352296,1765550603748,-500.0,0.00041095,120]
[398352297,1765550603794,-2126.42,0.00041095,120]
[398352298,1765550603839,-969.25,0.00041095,120]
[398352299,1765550603884,-1905.34,0.00041095,120]
[398352300,1765550603931,-730.44,0.00041095,120]
[398352301,1765550603976,-500.0,0.00041095,120]
[398352302,1765550604022,-2439.18,0.00041095,120]
[398352303,1765550604069,-1146.25,0.00041095,120]
[398352304,1765550604117,-500.0,0.00041095,120]
[398352305,1765550604327,-5316.03,0.00041095,120]
[398352306,1765550604373,-2849.86,0.00041095,120]
[398352307,1765550604417,-11745.46,0.00041095,120]
[398352308,1765550604463,-1652.31,0.00041095,120]
[398352309,1765550604502,-500.0,0.00041095,120]
[398352310,1765550604538,-500.0,0.00041095,120]
[398352311,1765550604573,-980.55,0.00041095,120]
[398352312,1765550604608,-500.0,0.00041095,120]
[398352313,1765550604642,-500.0,0.00041095,120]
[398352314,1765550604677,-1404.64,0.00041095,120]
[398352315,1765550604710,-171.729412,0.00041095,120]
[398352316,1765550604743,-500.0,0.00041095,120]
[398352317,1765550604775,-1817.08,0.00041095,120]
[398352318,1765550604806,-500.0,0.00041095,120]
[398352319,1765550604838,-552.9,0.00041095,120]
[398352320,1765550604870,-500.0,0.00041095,120]
[398352321,1765550604903,-500.0,0.00041095,120]
[398352322,1765550604935,-572.08,0.00041095,120]
[398352323,1765550604969,-500.0,0.00041095,120]
[398352324,1765550605002,-1877.07,0.00041095,120]
[398352325,1765550605040,-500.0,0.00041095,120]
[398352326,1765550605075,-500.0,0.00041095,120]
[398352327,1765550605109,-1399.66,0.00041095,120]
[398352328,1765550605144,-500.0,0.00041095,120]
[398352329,1765550605179,-647.43,0.00041095,120]
[398352330,1765550605213,-500.0,0.00041095,120]
[398352331,1765550605247,-500.0,0.00041095,120]
[398352332,1765550605279,-500.0,0.00041095,120]
[398352333,1765550605312,-500.0,0.00041095,30]
[398352334,1765550605345,-1192.86,0.00041095,120]
[398352335,1765550605379,-500.0,0.00041095,120]
[398352336,1765550605414,-500.79907311,0.00041095,120]
[398352337,1765550605451,-11370.39,0.00041095,120]
[398352338,1765550605492,-1106.66,0.00041095,120]
[398352339,1765550605532,-500.0,0.00041095,120]
[398352340,1765550605568,-2998.58,0.00041095,120]
[398352341,1765550605601,-949.79,0.00041095,120]
[398352342,1765550605634,-582.61,0.00041095,120]
[398352343,1765550605670,-13925.74,0.00041095,120]
[398352344,1765550605704,-5218.25,0.00041095,120]
[398352345,1765550605738,-500.0,0.00041095,120]
[398352346,1765550605772,-1759.22,0.00041095,120]
[398352347,1765550605806,-2423.2,0.00041095,120]
[398352348,1765550605840,-500.0,0.00041095,120]
[398352349,1765550605873,-685.39,0.00041095,120]
[398352350,1765550605906,-609.72178869,0.00041095,120]
[398352351,1765550605940,-638.48,0.00041095,120]
[398352352,1765550605976,-500.0,0.00041095,120]
[398352353,1765550606011,-500.0,0.00041095,120]
[398352354,1765550606048,-554.1,0.00041095,120]
[398352355,1765550606083,-500.0,0.00041095,120]
[398352356,1765550606131,-500.0,0.00041095,120]
[398352357,1765550606173,-189.35,0.00041096,120]
[398352358,1765550606211,-795.43107,0.00041096,30]
[398352359,1765550606250,-353.4805169,0.00041096,30]
[398352360,1765550606289,-302.1700238,0.00041096,30]
[398352361,1765550606329,-302.1700238,0.00041096,30]
[398352362,1765550606367,-302.1700238,0.00041096,30]
[398352363,1765550606405,-302.1700238,0.00041096,30]
[398352364,1765550606445,-302.1700238,0.00041096,30]
[398352365,1765550606486,-302.1700238,0.00041096,30]
[398352366,1765550606523,-441.0207648,0.00041096,30]
[398352367,1765550606565,-289.3233095,0.00041096,30]
[398352368,1765550606602,-597.3517137,0.00041096,30]
[398352369,1765550606637,-597.3517137,0.00041096,30]
[398352370,1765550606673,-597.3517137,0.00041096,30]
[398352371,1765550606709,-1202.537834,0.00041096,30]
[398352372,1765550606745,-1668.536328,0.00041369,120]
[398352373,1765550606781,-500.0,0.00041369,120]
[398352374,1765550606818,-500.0,0.00041369,120]
[398352375,1765550606854,-500.0,0.00041369,120]
[398352376,1765550606892,-542.82,0.00041369,120]
[398352377,1765550606929,-500.0,0.00041369,120]
[398352378,1765550606966,-500.0,0.00041369,120]
[398352379,1765550607005,-1542.23,0.00041369,120]
[398352380,1765550607043,-500.0,0.00041369,120]
[398352381,1765550607080,-656.58,0.00041369,120]
[398352382,1765550607117,-500.0,0.00041369,120]
[398352383,1765550607154,-500.0,0.00041369,120]
[398352384,1765550607192,-1149.44,0.00041369,120]
[398352385,1765550607230,-1912.47,0.00041369,120]
[398352386,1765550607266,-500.0,0.00041369,120]
[398352387,1765550607303,-500.0,0.00041369,20]
[398352388,1765550607342,-500.0,0.00041369,120]
[398352389,1765550607380,-500.0,0.00041369,120]
[398352390,1765550607418,-500.0,0.00041369,120]
[398352391,1765550607455,-500.0,0.00041369,120]
[398352392,1765550607494,-500.0,0.00041369,120]
[398352393,1765550607534,-500.0,0.00041369,120]
[398352394,1765550607574,-500.0,0.00041369,120]
[398352395,1765550607613,-500.0,0.00041369,120]
[398352396,1765550607651,-500.0,0.00041369,120]
[398352397,1765550607689,-500.0,0.00041369,120]
[398352398,1765550607727,-341.31,0.00041369,120]
[398352399,1765550607766,-500.0,0.00041369,120]
[398352400,1765550607991,-500.0,0.00041369,120]
[398352401,1765550608031,-500.0,0.00041369,120]
[398352402,1765550608072,-861.35,0.00041369,120]
[398352403,1765550608111,-500.0,0.00041369,120]
[398352404,1765550608149,-500.0,0.00041369,120]
[398352405,1765550608189,-582.72,0.00041369,120]
[398352406,1765550608228,-500.0,0.00041369,120]
[398352407,1765550608267,-583.25,0.00041369,120]
[398352408,1765550608305,-500.0,0.00041369,120]
[398352409,1765550608349,-500.72111054,0.00041369,120]
[398352410,1765550608388,-500.0,0.00041369,120]
[398352411,1765550608434,-500.68098647,0.00041369,120]
[398352412,1765550608477,-625.32,0.00041369,120]
[398352413,1765550608520,-500.0,0.00041369,120]
[398352414,1765550608562,-666.03,0.00041369,120]
[398352415,1765550608600,-500.0,0.00041369,120]
[398352416,1765550608638,-500.0,0.00041369,120]
[398352417,1765550608675,-500.0,0.00041369,120]
[398352418,1765550608712,-416.08934171,0.00041369,120]
[398352419,1765550608749,-500.0,0.00041369,120]
[398352420,1765550608787,-500.0,0.00041369,120]
[398352421,1765550608824,-514.07,0.00041369,120]
[398352422,1765550608860,-500.0,0.00041369,120]
[398352423,1765550608897,-500.0,0.00041369,120]
[398352424,1765550608934,-500.0,0.00041369,120]
[398352425,1765550608972,-500.0,0.00041369,120]
[398352426,1765550609014,-181.84294215,0.00041369,120]
[398352427,1765550609056,-557.56,0.00041369,120]
[398352428,1765550609098,-500.0,0.00041369,120]
[398352429,1765550609140,-500.0,0.00041369,120]
[398352430,1765550609177,-784.13,0.00041369,120]
[398352431,1765550609215,-500.0,0.00041369,120]
[398352432,1765550609253,-580.32,0.00041369,120]
[398352433,1765550609290,-500.0,0.00041369,120]
[398352434,1765550609327,-629.9967182,0.00041369,120]
[398352435,1765550609363,-500.0,0.00041369,120]
[398352436,1765550609399,-500.0,0.00041369,120]
[398352437,1765550609436,-500.0,0.00041369,120]
[398352438,1765550609472,-500.0,0.00041369,120]
[398352439,1765550609509,-500.0,0.00041369,120]
[398352440,1765550609544,-500.0,0.00041369,120]
[398352441,1765550609579,-887.99,0.00041369,120]
[398352442,1765550609616,-500.0,0.00041369,120]
[398352443,1765550609652,-633.52,0.00041369,120]
[398352444,1765550609703,-500.0,0.00041369,120]
[398352445,1765550609749,-500.0,0.00041369,120]
[398352446,1765550609792,-500.0,0.00041369,120]
[398352447,1765550609834,-500.0,0.00041369,120]
[398352448,1765550609870,-500.0,0.00041369,120]
[398352449,1765550609906,-500.0,0.00041369,120]
[398352450,1765550609941,-500.0,0.00041369,120]
[398352451,1765550609977,-500.0,0.00041369,120]
[398352452,1765550610014,-1098.42,0.00041369,120]
[398352453,1765550610048,-500.0,0.00041369,120]
[398352454,1765550610082,-500.0,0.00041369,120]
[398352455,1765550610116,-1335.95,0.00041369,120]
[398352456,1765550610150,-500.0,0.00041369,120]
[398352457,1765550610184,-500.0,0.00041369,120]
[398352458,1765550610219,-500.0,0.00041369,120]
[398352459,1765550610256,-950.34,0.00041369,120]
[398352460,1765550610290,-500.0,0.00041369,120]
[398352461,1765550610325,-500.0,0.00041369,120]
[398352462,1765550610360,-500.0,0.00041369,30]
[398352463,1765550610394,-500.0,0.00041369,120]
[398352464,1765550610429,-1237.89,0.00041369,120]
[398352465,1765550610465,-500.0,0.00041369,120]
[398352466,1765550610498,-500.0,0.00041369,120]
[398352467,1765550610533,-500.0,0.00041369,120]
[398352468,1765550610568,-500.0,0.00041369,120]
[398352469,1765550610606,-500.0,0.00041369,120]
[398352470,1765550610643,-500.0,0.00041369,120]
[398352471,1765550610679,-1050.96,0.00041369,120]
[398352472,1765550610716,-500.0,0.00041369,120]
[398352473,1765550610753,-599.7,0.00041369,120]
[398352474,1765550610792,-756.15,0.00041369,120]
[398352475,1765550610833,-627.07,0.00041369,120]
[398352476,1765550610872,-500.0,0.00041369,120]
[398352477,1765550610910,-500.0,0.00041369,120]
[398352478,1765550610958,-630.5,0.00041369,120]
[398352479,1765550610997,-846.67,0.00041369,120]
[398352480,1765550611036,-500.0,0.00041369,120]
[398352481,1765550611078,-500.0,0.00041369,120]
[398352482,1765550611118,-500.0,0.00041369,120]
[398352483,1765550611169,-592.88,0.00041369,120]
[398352484,1765550611214,-500.0,0.00041369,120]
[398352485,1765550611261,-500.0,0.00041369,120]
[398352486,1765550611301,-1313.08,0.00041369,120]
[398352487,1765550611342,-500.0,0.00041369,120]
[398352488,1765550611383,-500.0,0.00041369,120]
[398352489,1765550611425,-500.0,0.00041369,120]
[398352490,1765550611467,-2756.78,0.00041369,120]
[398352491,1765550611508,-500.0,0.00041369,120]
[398352492,1765550611549,-784.6,0.00041369,120]
[398352493,1765550611589,-500.0,0.00041369,120]
[398352494,1765550611812,-2350.79,0.00041369,120]
[398352495,1765550611849,-500.0,0.00041369,120]
[398352496,1765550611886,-500.0,0.00041369,120]
[398352497,1765550611923,-500.0,0.00041369,120]
[398352498,1765550611960,-500.0,0.00041369,120]
[398352499,1765550611996,-500.0,0.00041369,120]
[398352500,1765550612033,-678.0,0.00041369,120]
[398352501,1765550612069,-500.0,0.00041369,120]
[398352502,1765550612107,-500.0,0.00041369,120]
[398352503,1765550612145,-500.0,0.00041369,120]
[398352504,1765550612183,-551.87,0.00041369,120]
[398352505,1765550612219,-500.0,0.00041369,120]
[398352506,1765550612254,-2805.16,0.00041369,120]
[398352507,1765550612288,-770.49,0.00041369,120]
[398352508,1765550612325,-500.0,0.00041369,120]
[398352509,1765550612362,-1853.03,0.00041369,120]
[398352510,1765550612400,-500.0,0.00041369,120]
[398352511,1765550612438,-1526.12,0.00041369,120]
[398352512,1765550612475,-500.0,0.00041369,120]
[398352513,1765550612513,-500.0,0.00041369,120]
[398352514,1765550612552,-500.0,0.00041369,120]
[398352515,1765550612588,-500.0,0.00041369,120]
[398352516,1765550612623,-500.0,0.00041369,120]
[398352517,1765550612658,-656.45,0.00041369,120]
[398352518,1765550612694,-500.0,0.00041369,120]
[398352519,1765550612728,-500.0,0.00041369,120]
[398352520,1765550612762,-976.43,0.00041369,120]
[398352521,1765550612797,-500.0,0.00041369,120]
[398352522,1765550612832,-500.0,0.00041369,120]
[398352523,1765550612867,-500.0,0.00041369,120]
[398352524,1765550612907,-1044.0,0.00041369,120]
[398352525,1765550612948,-789.39,0.00041369,120]
[398352526,1765550612981,-500.0,0.00041369,120]
[398352527,1765550613015,-500.0,0.00041369,120]
[398352528,1765550613049,-500.0,0.00041369,120]
[398352529,1765550613083,-500.0,0.00041369,120]
[398352530,1765550613117,-1109.49,0.00041369,120]
[398352531,1765550613152,-1167.12,0.00041369,120]
[398352532,1765550613189,-500.0,0.00041369,120]
[398352533,1765550613225,-631.56,0.00041369,120]
[398352534,1765550613260,-500.0,0.00041369,120]
[398352535,1765550613293,-500.0,0.00041369,120]
[398352536,1765550613328,-1530.04,0.00041369,30]
[398352537,1765550613363,-500.0,0.00041369,120]
[398352538,1765550613398,-500.0,0.00041369,120]
[398352539,1765550613424,-500.0,0.00041369,120]
[398352540,1765550613449,-584.03216213,0.00041369,120]
[398352541,1765550613475,-500.0,0.00041369,120]
[398352542,1765550613501,-500.0,0.00041369,120]
[398352543,1765550613524,-500.0,0.00041369,120]
[398352544,1765550613552,-500.0,0.00041369,120]
[398352545,1765550613577,-500.0,0.00041369,120]
[398352546,1765550613602,-510.37,0.00041369,120]
[398352547,1765550613627,-500.0,0.00041369,120]
[398352548,1765550613653,-2114.75886115,0.00041369,60]
[398352549,1765550613679,-530.49,0.00041369,120]
[398352550,1765550613704,-500.0,0.00041369,120]
[398352551,1765550613730,-500.0,0.00041369,120]
[398352552,1765550613755,-500.0,0.00041369,120]
[398352553,1765550613781,-593.35,0.00041369,120]
[398352554,1765550613811,-500.0,0.00041369,120]
[398352555,1765550613837,-1767.15,0.00041369,120]
[398352556,1765550613864,-1131.39,0.00041369,120]
[398352557,1765550613891,-500.0,0.00041369,120]
[398352558,1765550613918,-1136.91,0.00041369,120]
[398352559,1765550613946,-1199.96,0.00041369,120]
[398352560,1765550613974,-500.0,0.00041369,120]
[398352561,1765550614002,-863.6,0.00041369,120]
[398352562,1765550614029,-226.62634179,0.00041369,120]
[398352563,1765550614058,-500.0,0.00041369,120]
[398352564,1765550614085,-500.0,0.00041369,120]
[398352565,1765550614112,-1062.86,0.00041369,120]
[398352566,1765550614138,-760.7,0.00041369,120]
[398352567,1765550614165,-500.0,0.00041369,120]
[398352568,1765550614191,-622.22,0.00041369,120]
[398352569,1765550614217,-633.34,0.00041369,120]
[398352570,1765550614242,-785.6,0.00041369,120]
[398352571,1765550614267,-216.37,0.00041369,40]
[398352572,1765550614293,-500.0,0.00041369,120]
[398352573,1765550614319,-1007.11,0.00041369,120]
[398352574,1765550614346,-500.0,0.00041369,120]
[398352575,1765550614372,-643.45,0.00041369,120]
[398352576,1765550614396,-605.35,0.00041369,120]
[398352577,1765550614421,-353.78674583,0.00041369,120]
[398352578,1765550614446,-1267.0,0.00041369,120]
[398352579,1765550614471,-500.0,0.00041369,120]
[398352580,1765550614496,-500.0,0.00041369,120]
[398352581,1765550614520,-1317.67,0.00041369,120]
[398352582,1765550614548,-500.0,0.00041369,120]
[398352583,1765550614573,-500.0,0.00041369,120]
[398352584,1765550614599,-2532.65,0.00041369,120]
[398352585,1765550614627,-500.0,0.00041369,120]
[398352586,1765550614654,-500.0,0.00041369,120]
[398352587,1765550614682,-500.0,0.00041369,120]
[398352588,1765550614707,-500.0,0.00041369,120]
[398352589,1765550614893,-500.0,0.00041369,120]
[398352590,1765550614920,-500.0,0.00041369,120]
[398352591,1765550614946,-649.21,0.00041369,120]
[398352592,1765550614971,-522.89,0.00041369,120]
[398352593,1765550614997,-500.0,0.00041369,120]
[398352594,1765550615022,-535.99,0.00041369,60]
[398352595,1765550615048,-1816.61,0.00041369,120]
[398352596,1765550615074,-500.0,0.00041369,120]
[398352597,1765550615099,-500.0,0.00041369,120]
[398352598,1765550615124,-2896.16,0.00041369,120]
[398352599,1765550615150,-1053.13,0.00041369,120]
[398352600,1765550615175,-500.0,0.00041369,120]
[398352601,1765550615201,-500.0,0.00041369,120]
[398352602,1765550615228,-901.04,0.00041369,120]
[398352603,1765550615253,-500.0,0.00041369,120]
[398352604,1765550615278,-500.0,0.00041369,120]
[398352605,1765550615303,-2528.58,0.00041369,30]
[398352606,1765550615329,-500.0,0.00041369,120]
[398352607,1765550615354,-500.0,0.00041369,120]
[398352608,1765550615380,-500.0,0.00041369,120]
[398352609,1765550615405,-500.0,0.00041369,120]
[398352610,1765550615429,-500.0,0.00041369,120]
[398352611,1765550615454,-500.0,0.00041369,120]
[398352612,1765550615478,-2217.63,0.00041369,120]
[398352613,1765550615503,-500.0,0.00041369,120]
[398352614,1765550615528,-500.0,0.00041369,120]
[398352615,1765550615556,-1430.93,0.00041369,120]
[398352616,1765550615581,-500.0,0.00041369,120]
[398352617,1765550615605,-500.0,0.00041369,120]
[398352618,1765550615630,-500.0,0.00041369,120]
[398352619,1765550615655,-500.0,0.00041369,120]
[398352620,1765550615679,-500.0,0.00041369,120]
[398352621,1765550615704,-1274.91,0.00041369,120]
[398352622,1765550615730,-500.0,0.00041369,120]
[398352623,1765550615755,-500.0,0.00041369,120]
[398352624,1765550615780,-1530.36,0.00041369,120]
[398352625,1765550615807,-2304.51,0.00041369,120]
[398352626,1765550615833,-500.0,0.00041369,120]
[398352627,1765550615858,-1066.0,0.00041369,120]
[398352628,1765550615883,-2307.18,0.00041369,120]
[398352629,1765550615913,-500.0,0.00041369,120]
[398352630,1765550615939,-500.0,0.00041369,120]
[398352631,1765550615965,-780.18,0.00041369,120]
[398352632,1765550615996,-500.0,0.00041369,120]
[398352633,1765550616025,-587.09,0.00041369,120]
[398352634,1765550616051,-912.38,0.00041369,120]
[398352635,1765550616081,-500.0,0.00041369,120]
[398352636,1765550616119,-500.0,0.00041369,120]
[398352637,1765550616147,-500.0,0.00041369,120]
[398352638,1765550616177,-500.0,0.00041369,120]
[398352639,1765550616206,-500.0,0.00041369,120]
[398352640,1765550616236,-500.0,0.00041369,120]
[398352641,1765550616265,-757.56,0.00041369,120]
[398352642,1765550616294,-1239.73,0.00041369,120]
[398352643,1765550616321,-632.61026642,0.00041369,120]
[398352644,1765550616347,-500.0,0.00041369,120]
[398352645,1765550616374,-655.77,0.00041369,120]
[398352646,1765550616400,-500.0,0.00041369,120]
[398352647,1765550616429,-500.0,0.00041369,120]
[398352648,1765550616458,-500.0,0.00041369,120]
[398352649,1765550616486,-775.49,0.00041369,120]
[398352650,1765550616514,-550.93,0.00041369,120]
[398352651,1765550616541,-1207.54,0.00041369,120]
[398352652,1765550616569,-279.95173097,0.00041369,120]
[398352653,1765550616598,-600.79,0.00041369,120]
[398352654,1765550616627,-500.0,0.00041369,120]
[398352655,1765550616652,-500.0,0.00041369,90]
[398352656,1765550616680,-4967.13,0.00041369,120]
[398352657,1765550616705,-673.72,0.00041369,120]
[398352658,1765550616731,-500.0,0.00041369,120]
[398352659,1765550616757,-500.0,0.00041369,120]
[398352660,1765550616781,-500.0,0.00041369,120]
[398352661,1765550616806,-500.0,0.00041369,120]
[398352662,1765550616831,-508.26,0.00041369,120]
[398352663,1765550616855,-740.52,0.00041369,120]
[398352664,1765550616882,-2196.53,0.00041369,120]
[398352665,1765550616907,-836.83,0.00041369,120]
[398352666,1765550616932,-500.0,0.00041369,120]
[398352667,1765550616958,-628.01,0.00041369,120]
[398352668,1765550616984,-500.0,0.00041369,120]
[398352669,1765550617010,-519.93,0.00041369,120]
[398352670,1765550617035,-978.47,0.00041369,120]
[398352671,1765550617061,-500.0,0.00041369,120]
[398352672,1765550617086,-500.0,0.00041369,120]
[398352673,1765550617111,-965.14,0.00041369,120]
[398352674,1765550617137,-500.0,0.00041369,120]
[398352675,1765550617163,-500.0,0.00041369,120]
[398352676,1765550617189,-500.0,0.00041369,120]
[398352677,1765550617214,-500.0,0.00041369,120]
[398352678,1765550617239,-1184.12,0.00041369,120]
[398352679,1765550617263,-500.0,0.00041369,120]
[398352680,1765550617288,-500.0,0.00041369,120]
[398352681,1765550617313,-902.21,0.00041369,120]
[398352682,1765550617338,-572.16,0.00041369,120]
[398352683,1765550617531,-500.0,0.00041369,120]
[398352684,1765550617560,-500.0,0.00041369,120]
[398352685,1765550617587,-1561.62,0.00041369,120]
[398352686,1765550617614,-500.0,0.00041369,120]
[398352687,1765550617641,-1553.54,0.00041369,120]
[398352688,1765550617669,-28106.34,0.00041369,120]
[398352689,1765550617696,-500.0,0.00041369,120]
[398352690,1765550617722,-749.87,0.00041369,120]
[398352691,1765550617748,-500.0,0.00041369,120]
[398352692,1765550617774,-500.0,0.00041369,120]
[398352693,1765550617800,-500.0,0.00041369,120]
[398352694,1765550617825,-1859.36,0.00041369,120]
[398352695,1765550617850,-500.0,0.00041369,120]
[398352696,1765550617876,-500.0,0.00041369,120]
[398352697,1765550617901,-462.99223862,0.00041369,120]
[398352698,1765550617927,-1893.46,0.00041369,120]
[398352699,1765550617952,-830.87,0.00041369,120]
[398352700,1765550617978,-500.0,0.00041369,120]
[398352701,1765550618003,-534.91,0.00041369,120]
[398352702,1765550618030,-2243.46,0.00041369,120]
[398352703,1765550618056,-500.0,0.00041369,120]
[398352704,1765550618085,-6367.5,0.00041369,120]
[398352705,1765550618114,-500.0,0.00041369,120]
[398352706,1765550618143,-514.59,0.00041369,60]
[398352707,1765550618171,-500.0,0.00041369,120]
[398352708,1765550618201,-500.0,0.00041369,120]
[398352709,1765550618230,-3453.8,0.00041369,120]
[398352710,1765550618259,-500.0,0.00041369,120]
[398352711,1765550618290,-500.0,0.00041369,120]
[398352712,1765550618320,-835.05,0.00041369,120]
[398352713,1765550618350,-2657.46,0.00041369,120]
[398352714,1765550618378,-1899.05,0.00041369,120]
[398352715,1765550618406,-500.0,0.00041369,120]
[398352716,1765550618434,-2922.69,0.00041369,120]
[398352717,1765550618460,-1195.32,0.00041369,120]
[398352718,1765550618486,-500.0,0.00041369,120]
[398352719,1765550618512,-1029.2,0.00041369,120]
[398352720,1765550618540,-500.0,0.00041369,120]
[398352721,1765550618567,-500.0,0.00041369,120]
[398352722,1765550618594,-537.56701922,0.00041369,120]
[398352723,1765550618622,-3323.03,0.00041369,120]
[398352724,1765550618651,-500.0,0.00041369,120]
[398352725,1765550618678,-500.0,0.00041369,120]
[398352726,1765550618705,-856.23,0.00041369,120]
[398352727,1765550618732,-500.0,0.00041369,120]
[398352728,1765550618759,-500.0,0.00041369,120]
[398352729,1765550618786,-500.0,0.00041369,120]
[398352730,1765550618813,-500.0,0.00041369,120]
[398352731,1765550618840,-4775.19,0.00041369,120]
[398352732,1765550618867,-500.0,0.00041369,120]
[398352733,1765550618895,-2051.1,0.00041369,120]
[398352734,1765550618922,-500.0,0.00041369,120]
[398352735,1765550618951,-3114.34,0.00041369,120]
[398352736,1765550618979,-1277.89,0.00041369,120]
[398352737,1765550619008,-8536.48,0.00041369,120]
[398352738,1765550619037,-3566.64,0.00041369,120]
[398352739,1765550619067,-602.99,0.00041369,120]
[398352740,1765550619095,-700.66,0.00041369,120]
[398352741,1765550619121,-500.0,0.00041369,120]
[398352742,1765550619150,-500.0,0.00041369,120]
[398352743,1765550619177,-1213.05,0.00041369,120]
[398352744,1765550619205,-500.0,0.00041369,120]
[398352745,1765550619231,-500.0,0.00041369,120]
[398352746,1765550619258,-1525.15,0.00041369,120]
[398352747,1765550619284,-500.0,0.00041369,120]
[398352748,1765550619310,-500.0,0.00041369,120]
[398352749,1765550619337,-500.0,0.00041369,120]
[398352750,1765550619363,-500.0,0.00041369,120]
[398352751,1765550619390,-500.0,0.00041369,120]
[398352752,1765550619416,-623.0,0.00041369,120]
[398352753,1765550619447,-500.0,0.00041369,120]
[398352754,1765550619473,-500.0,0.00041369,120]
[398352755,1765550619497,-862.66,0.00041369,120]
[398352756,1765550619522,-34926.57,0.00041369,120]
[398352757,1765550619551,-537.63,0.00041369,120]
[398352758,1765550619576,-500.0,0.00041369,120]
[398352759,1765550619602,-2694.37,0.00041369,120]
[398352760,1765550619630,-500.0,0.00041369,120]
[398352761,1765550619656,-186.09297695,0.00041369,120]
[398352762,1765550619682,-500.0,0.00041369,120]
[398352763,1765550619709,-2328.13,0.00041369,120]
[398352764,1765550619735,-1190.56,0.00041369,120]
[398352765,1765550619761,-500.0,0.00041369,120]
[398352766,1765550619787,-1766.21,0.00041369,120]
[398352767,1765550619814,-500.0,0.00041369,120]
[398352768,1765550619841,-566.66,0.00041369,120]
[398352769,1765550619867,-500.0,0.00041369,120]
[398352770,1765550619891,-500.0,0.00041369,120]
[398352771,1765550619916,-1386.22,0.00041369,120]
[398352772,1765550619942,-717.34,0.00041369,120]
[398352773,1765550619972,-888.61,0.00041369,120]
[398352774,1765550620003,-1317.41,0.00041369,120]
[398352775,1765550620033,-1687.34,0.00041369,120]
[398352776,1765550620069,-500.0,0.00041369,120]
[398352777,1765550620273,-500.0,0.00041369,120]
[398352778,1765550620306,-1002.76,0.00041369,120]
[398352779,1765550620334,-849.49,0.00041369,120]
[398352780,1765550620363,-500.0,0.00041369,120]
[398352781,1765550620390,-5438.09,0.00041369,120]
[398352782,1765550620416,-643.6,0.00041369,120]
[398352783,1765550620443,-792.76,0.00041369,120]